[Event "December 19 Early 2023"]
[Site "https://www.chess.com"]
[Date "2023.12.19"]
[Round "8"]
[White "Dragun, Kamil"]
[Black "Le, Tuan Minh"]
[Result "0-1"]
[Board "20"]
[TimeControl "180+1"]
[WhiteFideId "1134167"]
[BlackFideId "12401153"]
[WhiteElo "2551"]
[BlackElo "2561"]
[WhiteTeam "POL"]
[BlackTeam "VIE"]
[WhiteClock "0:00:01"]
[BlackClock "0:00:05"]

1. d4 {[%clk 0:02:52]}  d5 {[%clk 0:03:00]} 2. c4 {[%clk 0:02:52]}  c6 {[%clk 0:02:59]} 3. Nc3 {[%clk 0:02:53]}  Nf6 {[%clk 0:02:57]} 4. e3 {[%clk 0:02:53]}  a6 {[%clk 0:02:52]} 5. Nf3 {[%clk 0:02:49]}  Bf5 {[%clk 0:02:51]} 6. cxd5 {[%clk 0:02:44]}  cxd5 {[%clk 0:02:50]} 7. Qb3 {[%clk 0:02:45]}  Ra7 {[%clk 0:02:51]} 8. Nh4 {[%clk 0:02:41]}  Be4 {[%clk 0:02:43]} 9. Nxe4 {[%clk 0:01:32]}  Nxe4 {[%clk 0:02:41]} 10. Bd3 {[%clk 0:01:19]}  e6 {[%clk 0:02:37]} 11. Nf3 {[%clk 0:01:17]}  Nf6 {[%clk 0:02:33]} 12. O-O {[%clk 0:01:16]}  Bd6 {[%clk 0:02:34]} 13. Ne5 {[%clk 0:01:16]}  O-O {[%clk 0:02:30]} 14. Bd2 {[%clk 0:01:16]}  Nbd7 {[%clk 0:02:15]} 15. f4 {[%clk 0:01:09]}  Qa8 {[%clk 0:01:58]} 16. Rac1 {[%clk 0:01:06]}  b5 {[%clk 0:01:55]} 17. a4 {[%clk 0:01:01]}  bxa4 {[%clk 0:01:54]} 18. Qxa4 {[%clk 0:01:02]}  h6 {[%clk 0:01:07]} 19. Rc6 {[%clk 0:01:01]}  Bxe5 {[%clk 0:01:04]} 20. fxe5 {[%clk 0:01:00]}  Ne4 {[%clk 0:01:05]} 21. Bb4 {[%clk 0:00:42]}  Rb8 {[%clk 0:01:05]} 22. Rfc1 {[%clk 0:00:39]}  Nb6 {[%clk 0:01:02]} 23. Qc2 {[%clk 0:00:34]}  Rab7 {[%clk 0:00:50]} 24. Ba5 {[%clk 0:00:32]}  Nd7 {[%clk 0:00:42]} 25. b4 {[%clk 0:00:29]}  Nf8 {[%clk 0:00:36]} 26. Rxa6 {[%clk 0:00:27]}  Ra7 {[%clk 0:00:36]} 27. Rc6 {[%clk 0:00:22]}  Ng6 {[%clk 0:00:23]} 28. Bxe4 {[%clk 0:00:20]}  dxe4 {[%clk 0:00:23]} 29. Qxe4 {[%clk 0:00:21]}  Ne7 {[%clk 0:00:23]} 30. Qf3 {[%clk 0:00:15]}  Nxc6 {[%clk 0:00:23]} 31. Qxc6 {[%clk 0:00:16]}  Rab7 {[%clk 0:00:22]} 32. Rc5 {[%clk 0:00:12]}  Qa7 {[%clk 0:00:22]} 33. h3 {[%clk 0:00:12]}  Re8 {[%clk 0:00:16]} 34. Kh2 {[%clk 0:00:12]}  Rbb8 {[%clk 0:00:16]} 35. Bc7 {[%clk 0:00:11]}  Ra8 {[%clk 0:00:15]} 36. Ra5 {[%clk 0:00:11]}  Rec8 {[%clk 0:00:12]} 37. Rxa7 {[%clk 0:00:06]}  Rxa7 {[%clk 0:00:12]} 38. b5 {[%clk 0:00:06]}  Raxc7 {[%clk 0:00:13]} 39. Qd6 {[%clk 0:00:05]}  Rb7 {[%clk 0:00:14]} 40. b6 {[%clk 0:00:04]}  Rcb8 {[%clk 0:00:14]} 41. e4 {[%clk 0:00:04]}  Rxb6 {[%clk 0:00:15]} 42. Qe7 {[%clk 0:00:04]}  R6b7 {[%clk 0:00:12]} 43. Qd6 {[%clk 0:00:04]}  Rb6 {[%clk 0:00:13]} 44. Qd7 {[%clk 0:00:05]}  Rb2 {[%clk 0:00:11]} 45. d5 {[%clk 0:00:05]}  Re2 {[%clk 0:00:07]} 46. Qc7 {[%clk 0:00:05]}  Rbb2 {[%clk 0:00:06]} 47. d6 {[%clk 0:00:05]}  Rxg2+ {[%clk 0:00:06]} 48. Kh1 {[%clk 0:00:06]}  Rgd2 {[%clk 0:00:07]} 49. Qc1 {[%clk 0:00:04]}  Rbc2 {[%clk 0:00:05]} 50. Qa1 {[%clk 0:00:04]}  Kh7 {[%clk 0:00:05]} 51. Qg1 {[%clk 0:00:03]}  Ra2 {[%clk 0:00:04]} 52. h4 {[%clk 0:00:03]}  Ra3 {[%clk 0:00:04]} 53. Qf1 {[%clk 0:00:04]}  Rad3 {[%clk 0:00:04]} 54. Qxf7 {[%clk 0:00:04]}  Rh3+ {[%clk 0:00:04]} 55. Kg1 {[%clk 0:00:04]}  Rg3+ {[%clk 0:00:05]} 56. Kf1 {[%clk 0:00:04]}  Ra3 {[%clk 0:00:04]} 57. Ke1 {[%clk 0:00:01]}  Rb2 {[%clk 0:00:05]} 58. Kd1 {[%clk 0:00:01]}  Ra1# {[%clk 0:00:05]} 0-1

[Event "December 19 Early 2023"]
[Site "https://www.chess.com"]
[Date "2023.12.19"]
[Round "8"]
[White "Pranav, V"]
[Black "Matinian, Nikita"]
[Result "1-0"]
[Board "21"]
[TimeControl "180+1"]
[WhiteFideId "25060783"]
[BlackFideId "24129100"]
[WhiteElo "2562"]
[BlackElo "2417"]
[WhiteTeam "IND"]
[BlackTeam "FID"]
[WhiteClock "0:00:04"]
[BlackClock "0:00:01"]

1. e4 {[%clk 0:03:00]}  c5 {[%clk 0:02:58]} 2. Nf3 {[%clk 0:03:01]}  d6 {[%clk 0:02:59]} 3. d4 {[%clk 0:03:01]}  cxd4 {[%clk 0:03:00]} 4. Nxd4 {[%clk 0:03:02]}  Nf6 {[%clk 0:03:00]} 5. Nc3 {[%clk 0:03:03]}  g6 {[%clk 0:03:01]} 6. Be3 {[%clk 0:03:03]}  Nc6 {[%clk 0:03:01]} 7. Bc4 {[%clk 0:02:59]}  Bg7 {[%clk 0:02:59]} 8. f3 {[%clk 0:02:59]}  Bd7 {[%clk 0:02:59]} 9. Qd2 {[%clk 0:02:59]}  h5 {[%clk 0:02:55]} 10. O-O-O {[%clk 0:02:58]}  Ne5 {[%clk 0:02:54]} 11. Bb3 {[%clk 0:02:58]}  Rc8 {[%clk 0:02:54]} 12. h3 {[%clk 0:02:58]}  a6 {[%clk 0:02:46]} 13. g4 {[%clk 0:02:57]}  b5 {[%clk 0:02:41]} 14. f4 {[%clk 0:02:23]}  b4 {[%clk 0:02:35]} 15. Nd5 {[%clk 0:02:04]}  Nc4 {[%clk 0:02:03]} 16. Bxc4 {[%clk 0:01:50]}  Rxc4 {[%clk 0:02:04]} 17. Nxf6+ {[%clk 0:01:31]}  Bxf6 {[%clk 0:02:05]} 18. g5 {[%clk 0:01:32]}  Bg7 {[%clk 0:02:00]} 19. f5 {[%clk 0:01:23]}  Qa5 {[%clk 0:01:47]} 20. f6 {[%clk 0:00:57]}  exf6 {[%clk 0:01:34]} 21. Nb3 {[%clk 0:00:56]}  Qc7 {[%clk 0:01:16]} 22. Bd4 {[%clk 0:00:55]}  O-O {[%clk 0:01:04]} 23. gxf6 {[%clk 0:00:54]}  Rc8 {[%clk 0:01:04]} 24. Rh2 {[%clk 0:00:38]}  Bf8 {[%clk 0:00:58]} 25. Kb1 {[%clk 0:00:34]}  a5 {[%clk 0:00:56]} 26. Rg2 {[%clk 0:00:26]}  Be8 {[%clk 0:00:54]} 27. Nc1 {[%clk 0:00:21]}  a4 {[%clk 0:00:52]} 28. b3 {[%clk 0:00:21]}  axb3 {[%clk 0:00:48]} 29. axb3 {[%clk 0:00:22]}  Rc6 {[%clk 0:00:47]} 30. Rg5 {[%clk 0:00:20]}  Rxc2 {[%clk 0:00:40]} 31. Qe3 {[%clk 0:00:18]}  Rb2+ {[%clk 0:00:27]} 32. Bxb2 {[%clk 0:00:10]}  Qc2+ {[%clk 0:00:27]} 33. Ka1 {[%clk 0:00:07]}  Ra8+ {[%clk 0:00:27]} 34. Na2 {[%clk 0:00:07]}  Qxd1+ {[%clk 0:00:27]} 35. Bc1 {[%clk 0:00:08]}  Qc2 {[%clk 0:00:12]} 36. Bb2 {[%clk 0:00:08]}  Bd7 {[%clk 0:00:06]} 37. Rg1 {[%clk 0:00:03]}  Be6 {[%clk 0:00:06]} 38. Rg3 {[%clk 0:00:02]}  Qd1+ {[%clk 0:00:04]} 39. Bc1 {[%clk 0:00:02]}  h4 {[%clk 0:00:04]} 40. Rf3 {[%clk 0:00:03]}  Qc2 {[%clk 0:00:04]} 41. Bb2 {[%clk 0:00:03]}  Ra6 {[%clk 0:00:01]} 42. e5 {[%clk 0:00:02]}  dxe5 {[%clk 0:00:01]} 43. Qd3 {[%clk 0:00:01]}  Qxd3 {[%clk 0:00:01]} 44. Rxd3 {[%clk 0:00:01]}  Bf5 {[%clk 0:00:02]} 45. Rd8 {[%clk 0:00:01]}  Re6 {[%clk 0:00:02]} 46. Nxb4 {[%clk 0:00:01]}  e4 {[%clk 0:00:02]} 47. Nd5 {[%clk 0:00:01]}  e3 {[%clk 0:00:02]} 48. Ba3 {[%clk 0:00:01]}  e2 {[%clk 0:00:02]} 49. Rxf8+ {[%clk 0:00:02]}  Kh7 {[%clk 0:00:02]} 50. Rxf7+ {[%clk 0:00:03]}  Kh6 {[%clk 0:00:02]} 51. Bb4 {[%clk 0:00:03]}  e1=Q+ {[%clk 0:00:02]} 52. Bxe1 {[%clk 0:00:04]}  Rxe1+ {[%clk 0:00:03]} 53. Kb2 {[%clk 0:00:05]}  Be6 {[%clk 0:00:04]} 54. Re7 {[%clk 0:00:04]}  Re2+ {[%clk 0:00:04]} 55. Ka3 {[%clk 0:00:05]}  Bg4 {[%clk 0:00:04]} 56. hxg4 {[%clk 0:00:03]}  Rxe7 {[%clk 0:00:01]} 57. fxe7 {[%clk 0:00:04]} 1-0

[Event "December 19 Early 2023"]
[Site "https://www.chess.com"]
[Date "2023.12.19"]
[Round "8"]
[White "Movahed, Sina"]
[Black "Volkov, Maksim"]
[Result "1-0"]
[Board "27"]
[TimeControl "180+1"]
[WhiteFideId "42520835"]
[BlackFideId "54123070"]
[WhiteElo "2341"]
[BlackElo "2293"]
[WhiteTeam "IRI"]
[BlackTeam "RUS"]
[WhiteClock "0:00:24"]
[BlackClock "0:00:15"]

1. Nf3 {[%clk 0:03:00]}  d5 {[%clk 0:02:59]} 2. c4 {[%clk 0:03:01]}  e6 {[%clk 0:02:59]} 3. g3 {[%clk 0:03:01]}  Nf6 {[%clk 0:02:59]} 4. Bg2 {[%clk 0:03:01]}  dxc4 {[%clk 0:03:00]} 5. Qa4+ {[%clk 0:02:59]}  Nbd7 {[%clk 0:03:00]} 6. Qxc4 {[%clk 0:02:58]}  a6 {[%clk 0:03:00]} 7. Qc2 {[%clk 0:02:57]}  c5 {[%clk 0:03:00]} 8. O-O {[%clk 0:02:57]}  b5 {[%clk 0:03:00]} 9. Ne5 {[%clk 0:02:54]}  Nd5 {[%clk 0:02:59]} 10. Nd3 {[%clk 0:02:26]}  Bb7 {[%clk 0:02:57]} 11. Nc3 {[%clk 0:02:26]}  Rc8 {[%clk 0:02:49]} 12. Nxd5 {[%clk 0:02:24]}  Bxd5 {[%clk 0:02:45]} 13. Bxd5 {[%clk 0:02:23]}  exd5 {[%clk 0:02:45]} 14. Nf4 {[%clk 0:02:23]}  Nf6 {[%clk 0:02:44]} 15. a4 {[%clk 0:02:24]}  b4 {[%clk 0:02:43]} 16. d3 {[%clk 0:01:53]}  Bd6 {[%clk 0:02:40]} 17. e4 {[%clk 0:01:51]}  dxe4 {[%clk 0:02:17]} 18. dxe4 {[%clk 0:01:49]}  O-O {[%clk 0:02:16]} 19. Qc4 {[%clk 0:01:48]}  Re8 {[%clk 0:02:09]} 20. Re1 {[%clk 0:01:38]}  Be5 {[%clk 0:02:09]} 21. Nd3 {[%clk 0:01:13]}  Bd4 {[%clk 0:01:53]} 22. Bg5 {[%clk 0:01:08]}  h6 {[%clk 0:01:46]} 23. Bxf6 {[%clk 0:01:02]}  Qxf6 {[%clk 0:01:47]} 24. Re2 {[%clk 0:01:02]}  g5 {[%clk 0:01:37]} 25. a5 {[%clk 0:00:47]}  Rc6 {[%clk 0:01:35]} 26. Rc1 {[%clk 0:00:41]}  Qf3 {[%clk 0:01:17]} 27. Rce1 {[%clk 0:00:27]}  Rf6 {[%clk 0:01:11]} 28. e5 {[%clk 0:00:25]}  Rc6 {[%clk 0:00:47]} 29. Nxb4 {[%clk 0:00:23]}  Bxf2+ {[%clk 0:00:32]} 30. Rxf2 {[%clk 0:00:23]}  cxb4 {[%clk 0:00:33]} 31. Qxb4 {[%clk 0:00:18]}  Qd5 {[%clk 0:00:33]} 32. Qe4 {[%clk 0:00:16]}  Qxe4 {[%clk 0:00:30]} 33. Rxe4 {[%clk 0:00:17]}  Rc5 {[%clk 0:00:31]} 34. b4 {[%clk 0:00:17]}  Rcxe5 {[%clk 0:00:31]} 35. Rxe5 {[%clk 0:00:18]}  Rxe5 {[%clk 0:00:32]} 36. Rf6 {[%clk 0:00:19]}  Re4 {[%clk 0:00:29]} 37. Rxa6 {[%clk 0:00:18]}  Rxb4 {[%clk 0:00:27]} 38. Rxh6 {[%clk 0:00:19]}  Ra4 {[%clk 0:00:28]} 39. a6 {[%clk 0:00:19]}  Kg7 {[%clk 0:00:26]} 40. Rb6 {[%clk 0:00:19]}  Ra2 {[%clk 0:00:26]} 41. h4 {[%clk 0:00:19]}  gxh4 {[%clk 0:00:25]} 42. gxh4 {[%clk 0:00:20]}  Kh7 {[%clk 0:00:25]} 43. h5 {[%clk 0:00:20]}  Kg7 {[%clk 0:00:21]} 44. h6+ {[%clk 0:00:20]}  Kh7 {[%clk 0:00:21]} 45. Rf6 {[%clk 0:00:21]}  Kg8 {[%clk 0:00:19]} 46. Kf1 {[%clk 0:00:21]}  Kh8 {[%clk 0:00:18]} 47. Ke1 {[%clk 0:00:22]}  Kg8 {[%clk 0:00:18]} 48. Kd1 {[%clk 0:00:22]}  Kh8 {[%clk 0:00:17]} 49. Kc1 {[%clk 0:00:23]}  Kg8 {[%clk 0:00:18]} 50. Kb1 {[%clk 0:00:23]}  Ra5 {[%clk 0:00:19]} 51. Kb2 {[%clk 0:00:24]}  Ra4 {[%clk 0:00:19]} 52. Kb3 {[%clk 0:00:24]}  Ra1 {[%clk 0:00:20]} 53. Kb4 {[%clk 0:00:24]}  Rb1+ {[%clk 0:00:21]} 54. Kc5 {[%clk 0:00:25]}  Rc1+ {[%clk 0:00:19]} 55. Kb6 {[%clk 0:00:25]}  Rb1+ {[%clk 0:00:20]} 56. Ka7 {[%clk 0:00:25]}  Rb2 {[%clk 0:00:18]} 57. Rb6 {[%clk 0:00:25]}  Ra2 {[%clk 0:00:18]} 58. Kb7 {[%clk 0:00:26]}  Kh7 {[%clk 0:00:15]} 59. a7 {[%clk 0:00:24]}  f5 {[%clk 0:00:15]} 1-0

[Event "December 19 Early 2023"]
[Site "https://www.chess.com"]
[Date "2023.12.19"]
[Round "8"]
[White "Galchenko, Matvey"]
[Black "Gubajdullin, Alexei"]
[Result "1-0"]
[Board "28"]
[TimeControl "180+1"]
[WhiteFideId "24175480"]
[BlackFideId "4141202"]
[WhiteElo "2424"]
[BlackElo "2274"]
[WhiteTeam "FID"]
[BlackTeam "RUS"]
[WhiteClock "0:00:07"]
[BlackClock "0:00:02"]

1. e4 {[%clk 0:03:00]}  e5 {[%clk 0:02:59]} 2. Nf3 {[%clk 0:02:57]}  Nf6 {[%clk 0:02:59]} 3. Bc4 {[%clk 0:02:48]}  Nxe4 {[%clk 0:02:54]} 4. Nc3 {[%clk 0:02:48]}  Nf6 {[%clk 0:02:46]} 5. Nxe5 {[%clk 0:02:05]}  d5 {[%clk 0:02:45]} 6. Be2 {[%clk 0:02:05]}  Bd6 {[%clk 0:02:38]} 7. d4 {[%clk 0:02:05]}  O-O {[%clk 0:02:38]} 8. O-O {[%clk 0:02:06]}  Nbd7 {[%clk 0:02:35]} 9. f4 {[%clk 0:01:39]}  c6 {[%clk 0:02:34]} 10. Bd3 {[%clk 0:01:32]}  Re8 {[%clk 0:02:31]} 11. Qf3 {[%clk 0:01:30]}  h5 {[%clk 0:02:25]} 12. Be3 {[%clk 0:01:28]}  Nf8 {[%clk 0:02:20]} 13. Rae1 {[%clk 0:01:25]}  Bg4 {[%clk 0:01:46]} 14. Qg3 {[%clk 0:01:23]}  Qc8 {[%clk 0:01:44]} 15. f5 {[%clk 0:01:15]}  c5 {[%clk 0:01:39]} 16. Nb5 {[%clk 0:01:11]}  Bb8 {[%clk 0:01:39]} 17. c3 {[%clk 0:01:08]}  a6 {[%clk 0:01:34]} 18. Na3 {[%clk 0:01:08]}  Ne4 {[%clk 0:01:10]} 19. Qh4 {[%clk 0:00:59]}  Bxf5 {[%clk 0:01:02]} 20. Qxh5 {[%clk 0:00:45]}  g6 {[%clk 0:00:54]} 21. Qh4 {[%clk 0:00:39]}  cxd4 {[%clk 0:00:31]} 22. cxd4 {[%clk 0:00:39]}  Ba7 {[%clk 0:00:28]} 23. Nxf7 {[%clk 0:00:27]}  Kxf7 {[%clk 0:00:24]} 24. g4 {[%clk 0:00:27]}  Qe6 {[%clk 0:00:15]} 25. Kh1 {[%clk 0:00:15]}  Qf6 {[%clk 0:00:14]} 26. Qh6 {[%clk 0:00:05]}  Kg8 {[%clk 0:00:11]} 27. gxf5 {[%clk 0:00:05]}  Bxd4 {[%clk 0:00:11]} 28. fxg6 {[%clk 0:00:04]}  Qg7 {[%clk 0:00:08]} 29. Qxg7+ {[%clk 0:00:03]}  Bxg7 {[%clk 0:00:08]} 30. Rf7 {[%clk 0:00:03]}  Nxg6 {[%clk 0:00:08]} 31. Rxb7 {[%clk 0:00:03]}  Ne5 {[%clk 0:00:08]} 32. Be2 {[%clk 0:00:03]}  Rad8 {[%clk 0:00:07]} 33. Bxa6 {[%clk 0:00:03]}  Rd6 {[%clk 0:00:07]} 34. Bb5 {[%clk 0:00:03]}  Rc8 {[%clk 0:00:06]} 35. Bd4 {[%clk 0:00:03]}  Rg6 {[%clk 0:00:06]} 36. Rg1 {[%clk 0:00:03]}  Rxg1+ {[%clk 0:00:04]} 37. Kxg1 {[%clk 0:00:04]}  Rc1+ {[%clk 0:00:04]} 38. Kg2 {[%clk 0:00:04]}  Rd1 {[%clk 0:00:04]} 39. Rxg7+ {[%clk 0:00:04]}  Kxg7 {[%clk 0:00:04]} 40. Bxe5+ {[%clk 0:00:04]}  Kf7 {[%clk 0:00:05]} 41. Bf4 {[%clk 0:00:05]}  Ra1 {[%clk 0:00:04]} 42. Kf3 {[%clk 0:00:04]}  Rxa2 {[%clk 0:00:04]} 43. Be5 {[%clk 0:00:04]}  Ke6 {[%clk 0:00:05]} 44. Bd4 {[%clk 0:00:05]}  Nd6 {[%clk 0:00:04]} 45. Bd3 {[%clk 0:00:05]}  Nf5 {[%clk 0:00:03]} 46. Nb5 {[%clk 0:00:06]}  Nxd4+ {[%clk 0:00:02]} 47. Nxd4+ {[%clk 0:00:07]}  Ke5 {[%clk 0:00:02]} 48. Ke3 {[%clk 0:00:04]}  Rxb2 {[%clk 0:00:02]} 49. h4 {[%clk 0:00:04]}  Rh2 {[%clk 0:00:02]} 50. Nf3+ {[%clk 0:00:05]}  Kf6 {[%clk 0:00:01]} 51. Nxh2 {[%clk 0:00:06]}  Kg7 {[%clk 0:00:02]} 52. Kf4 {[%clk 0:00:06]}  Kh6 {[%clk 0:00:03]} 53. Kg4 {[%clk 0:00:06]}  d4 {[%clk 0:00:02]} 54. Nf3 {[%clk 0:00:07]} 1-0

[Event "December 19 Early 2023"]
[Site "https://www.chess.com"]
[Date "2023.12.19"]
[Round "8"]
[White "Boyer, Mahel"]
[Black "Zhigalko, Sergei"]
[Result "1-0"]
[Board "29"]
[TimeControl "180+1"]
[WhiteFideId "45102422"]
[BlackFideId "13502956"]
[WhiteElo "2449"]
[BlackElo "2616"]
[WhiteTeam "FRA"]
[BlackTeam "BLR"]
[WhiteClock "0:01:44"]
[BlackClock "0:00:00"]

1. e4 {[%clk 0:03:00]}  c5 {[%clk 0:02:59]} 2. d3 {[%clk 0:03:01]}  Nc6 {[%clk 0:03:00]} 3. g3 {[%clk 0:03:02]}  g6 {[%clk 0:03:00]} 4. Bg2 {[%clk 0:03:02]}  Bg7 {[%clk 0:03:00]} 5. f4 {[%clk 0:03:03]}  d6 {[%clk 0:03:00]} 6. Nf3 {[%clk 0:03:04]}  Nf6 {[%clk 0:02:55]} 7. O-O {[%clk 0:03:04]}  O-O {[%clk 0:02:55]} 8. Nc3 {[%clk 0:03:05]}  Rb8 {[%clk 0:02:52]} 9. h3 {[%clk 0:03:06]}  b5 {[%clk 0:02:47]} 10. g4 {[%clk 0:03:07]}  b4 {[%clk 0:02:44]} 11. Ne2 {[%clk 0:03:07]}  Nd7 {[%clk 0:02:38]} 12. Qe1 {[%clk 0:03:06]}  a5 {[%clk 0:02:33]} 13. Rb1 {[%clk 0:03:06]}  Nd4 {[%clk 0:02:30]} 14. Nexd4 {[%clk 0:03:00]}  cxd4 {[%clk 0:02:31]} 15. Qf2 {[%clk 0:02:53]}  Qb6 {[%clk 0:02:26]} 16. b3 {[%clk 0:02:49]}  Ba6 {[%clk 0:02:03]} 17. Bb2 {[%clk 0:02:49]}  e5 {[%clk 0:01:59]} 18. f5 {[%clk 0:02:48]}  f6 {[%clk 0:01:37]} 19. fxg6 {[%clk 0:02:45]}  hxg6 {[%clk 0:01:37]} 20. Nh4 {[%clk 0:02:46]}  g5 {[%clk 0:01:13]} 21. Nf5 {[%clk 0:02:46]}  Rf7 {[%clk 0:01:10]} 22. h4 {[%clk 0:02:46]}  Rbf8 {[%clk 0:00:23]} 23. Qd2 {[%clk 0:02:21]}  gxh4 {[%clk 0:00:21]} 24. Qf2 {[%clk 0:02:21]}  Nc5 {[%clk 0:00:17]} 25. Qxh4 {[%clk 0:02:21]}  Ne6 {[%clk 0:00:17]} 26. Bc1 {[%clk 0:02:14]}  Bc8 {[%clk 0:00:15]} 27. Bh6 {[%clk 0:01:54]}  Qd8 {[%clk 0:00:10]} 28. Bxg7 {[%clk 0:01:44]}  Rxg7 {[%clk 0:00:03]} 29. Nh6+ {[%clk 0:01:45]}  Kh7 {[%clk 0:00:03]} 30. Nf7+ {[%clk 0:01:45]}  Kg8 {[%clk 0:00:04]} 31. Nh6+ {[%clk 0:01:43]}  Kh7 {[%clk 0:00:04]} 32. Nf7+ {[%clk 0:01:43]}  Kg8 {[%clk 0:00:05]} 33. Nxd8 {[%clk 0:01:44]}  Nxd8 {[%clk 0:00:06]} 34. Rxf6 {[%clk 0:01:44]}  Re8 {[%clk 0:00:06]} 35. Rxd6 {[%clk 0:01:43]}  Rxg4 {[%clk 0:00:00]} 36. Qxd8 {[%clk 0:01:44]} 1-0

[Event "December 19 Early 2023"]
[Site "https://www.chess.com"]
[Date "2023.12.19"]
[Round "8"]
[White "Manukyan, Sargis A."]
[Black "Baskakov, Egor"]
[Result "1/2-1/2"]
[Board "30"]
[TimeControl "180+1"]
[WhiteFideId "13303970"]
[BlackFideId "24197866"]
[WhiteElo "2186"]
[BlackElo "2225"]
[WhiteTeam "ARM"]
[BlackTeam "RUS"]
[WhiteClock "0:00:14"]
[BlackClock "0:00:06"]

1. d4 {[%clk 0:03:00]}  Nf6 {[%clk 0:02:59]} 2. c4 {[%clk 0:03:01]}  e6 {[%clk 0:02:59]} 3. Nc3 {[%clk 0:03:02]}  d5 {[%clk 0:03:00]} 4. cxd5 {[%clk 0:03:01]}  Nxd5 {[%clk 0:03:01]} 5. e4 {[%clk 0:03:00]}  Nxc3 {[%clk 0:03:01]} 6. bxc3 {[%clk 0:03:01]}  b6 {[%clk 0:03:02]} 7. Nf3 {[%clk 0:02:58]}  Bb7 {[%clk 0:03:02]} 8. Bd3 {[%clk 0:02:57]}  Nd7 {[%clk 0:03:03]} 9. O-O {[%clk 0:02:57]}  Be7 {[%clk 0:03:03]} 10. a4 {[%clk 0:02:55]}  c5 {[%clk 0:03:03]} 11. a5 {[%clk 0:02:55]}  bxa5 {[%clk 0:03:03]} 12. Ba3 {[%clk 0:02:54]}  O-O {[%clk 0:02:58]} 13. d5 {[%clk 0:02:47]}  exd5 {[%clk 0:02:55]} 14. exd5 {[%clk 0:02:48]}  c4 {[%clk 0:02:43]} 15. Bxe7 {[%clk 0:02:21]}  Qxe7 {[%clk 0:02:43]} 16. Bxc4 {[%clk 0:02:22]}  Rac8 {[%clk 0:02:31]} 17. d6 {[%clk 0:02:02]}  Qf6 {[%clk 0:02:09]} 18. Bb5 {[%clk 0:01:59]}  Bc6 {[%clk 0:01:57]} 19. Bxc6 {[%clk 0:01:47]}  Rxc6 {[%clk 0:01:56]} 20. Rxa5 {[%clk 0:01:44]}  Rxd6 {[%clk 0:01:56]} 21. Qa1 {[%clk 0:01:44]}  a6 {[%clk 0:01:49]} 22. c4 {[%clk 0:01:38]}  Qh6 {[%clk 0:01:38]} 23. Qc1 {[%clk 0:01:32]}  Qf6 {[%clk 0:01:33]} 24. Qa1 {[%clk 0:01:27]}  Rc8 {[%clk 0:01:29]} 25. Qxf6 {[%clk 0:01:21]}  Nxf6 {[%clk 0:01:29]} 26. c5 {[%clk 0:01:17]}  Rdc6 {[%clk 0:01:28]} 27. Nd4 {[%clk 0:01:09]}  Rxc5 {[%clk 0:01:28]} 28. Rxa6 {[%clk 0:01:09]}  Rc1 {[%clk 0:01:17]} 29. Ra1 {[%clk 0:01:09]}  Rxa1 {[%clk 0:01:17]} 30. Rxa1 {[%clk 0:01:09]}  g6 {[%clk 0:01:15]} 31. g3 {[%clk 0:01:08]}  Rd8 {[%clk 0:01:13]} 32. Nf3 {[%clk 0:01:07]}  Kg7 {[%clk 0:01:12]} 33. Ra7 {[%clk 0:01:07]}  Rd7 {[%clk 0:01:12]} 34. Ra6 {[%clk 0:01:07]}  Re7 {[%clk 0:01:11]} 35. h4 {[%clk 0:01:07]}  Ng4 {[%clk 0:01:09]} 36. Kf1 {[%clk 0:01:06]}  Rb7 {[%clk 0:01:06]} 37. Ra2 {[%clk 0:01:04]}  Rb5 {[%clk 0:01:01]} 38. Kg2 {[%clk 0:01:04]}  Ne5 {[%clk 0:01:01]} 39. Ng5 {[%clk 0:01:03]}  h6 {[%clk 0:01:00]} 40. Nh3 {[%clk 0:01:01]}  Nd3 {[%clk 0:00:58]} 41. Rd2 {[%clk 0:01:01]}  Rb3 {[%clk 0:00:57]} 42. Ng1 {[%clk 0:01:00]}  Ne5 {[%clk 0:00:57]} 43. Re2 {[%clk 0:00:59]}  Rb5 {[%clk 0:00:54]} 44. Nh3 {[%clk 0:00:58]}  Nd3 {[%clk 0:00:52]} 45. Re3 {[%clk 0:00:55]}  Rd5 {[%clk 0:00:52]} 46. Ng1 {[%clk 0:00:54]}  Ne5 {[%clk 0:00:48]} 47. Ne2 {[%clk 0:00:54]}  Ng4 {[%clk 0:00:47]} 48. Re4 {[%clk 0:00:52]}  f5 {[%clk 0:00:41]} 49. Re7+ {[%clk 0:00:49]}  Kf6 {[%clk 0:00:41]} 50. Re8 {[%clk 0:00:49]}  g5 {[%clk 0:00:42]} 51. hxg5+ {[%clk 0:00:49]}  hxg5 {[%clk 0:00:42]} 52. Rf8+ {[%clk 0:00:48]}  Kg6 {[%clk 0:00:42]} 53. Rg8+ {[%clk 0:00:48]}  Kf6 {[%clk 0:00:42]} 54. Rf8+ {[%clk 0:00:48]}  Kg7 {[%clk 0:00:43]} 55. Re8 {[%clk 0:00:47]}  Rd2 {[%clk 0:00:42]} 56. f3 {[%clk 0:00:45]}  Nf6 {[%clk 0:00:41]} 57. Re6 {[%clk 0:00:45]}  Kf7 {[%clk 0:00:41]} 58. Re5 {[%clk 0:00:44]}  Nd7 {[%clk 0:00:35]} 59. Re3 {[%clk 0:00:40]}  Kf6 {[%clk 0:00:34]} 60. f4 {[%clk 0:00:39]}  g4 {[%clk 0:00:34]} 61. Kf1 {[%clk 0:00:38]}  Nc5 {[%clk 0:00:30]} 62. Ke1 {[%clk 0:00:35]}  Rb2 {[%clk 0:00:29]} 63. Nc3 {[%clk 0:00:33]}  Rh2 {[%clk 0:00:18]} 64. Nd5+ {[%clk 0:00:32]}  Kf7 {[%clk 0:00:15]} 65. Nc3 {[%clk 0:00:28]}  Rg2 {[%clk 0:00:14]} 66. Kf1 {[%clk 0:00:24]}  Rc2 {[%clk 0:00:14]} 67. Ke1 {[%clk 0:00:22]}  Kf6 {[%clk 0:00:13]} 68. Nd5+ {[%clk 0:00:21]}  Kg7 {[%clk 0:00:13]} 69. Nc3 {[%clk 0:00:17]}  Nb3 {[%clk 0:00:10]} 70. Ne2 {[%clk 0:00:15]}  Rb2 {[%clk 0:00:07]} 71. Re5 {[%clk 0:00:15]}  Kf6 {[%clk 0:00:08]} 72. Nc3 {[%clk 0:00:14]}  Nd4 {[%clk 0:00:06]} 73. Nd5+ {[%clk 0:00:14]}  Kg6 {[%clk 0:00:06]} 74. Re6+ {[%clk 0:00:14]}  Nxe6 {[%clk 0:00:06]} 75. Ne3 {[%clk 0:00:14]}  Nd4 {[%clk 0:00:05]} 76. Nd5 {[%clk 0:00:14]}  Nf3+ {[%clk 0:00:06]} 77. Kf1 {[%clk 0:00:14]}  Rd2 {[%clk 0:00:06]} 78. Ne7+ {[%clk 0:00:13]}  Kf6 {[%clk 0:00:06]} 79. Nxf5 {[%clk 0:00:14]}  Kxf5 {[%clk 0:00:06]} 1/2-1/2